fUSD/lending_fUSD_20250708
["ID","MTS","AMOUNT","RATE_DAILY","PERIOD"]
[370347705,1751971875072,-260.850857,0.00027998,7]
[370347706,1751971875083,-260.850857,0.00027998,7]
[370347707,1751971875092,-151.0,0.00027998,7]
[370347708,1751971875101,-151.0,0.00027998,7]
[370347709,1751971875111,-151.0,0.00027998,7]
[370347710,1751971875121,-380.26209,0.00027998,7]
[370347711,1751971875130,-380.26209,0.00027998,7]
[370347712,1751971875140,-347.207309,0.00027998,7]
[370347713,1751971875150,-347.207309,0.00027998,7]
[370347714,1751971875159,-151.0,0.00027998,7]
[370347715,1751971875169,-363.138823,0.00027998,7]
[370347716,1751971875179,-363.138823,0.00027998,7]
[370347717,1751971875188,-151.0,0.00027998,7]
[370347718,1751971875198,-151.0,0.00027998,7]
[370347719,1751971875207,-171.164662,0.00027998,7]
[370347720,1751971875217,-171.164662,0.00027998,7]
[370347721,1751971875226,-151.0,0.00028,7]
[370347722,1751971875235,-459.34567086,0.00028,2]
[370347723,1751971875245,-386317.80210412,0.00028,2]
[370347724,1751971875266,-635.99647362,0.00028,2]
[370347725,1751971875289,-538.9287105,0.00027945,3]
[370347726,1751971875301,-291.0212895,0.00027945,3]
[370347727,1751971875310,-10756.0078059,0.00028,2]
[370347728,1751971875322,-1632.9499998,0.00028,2]
[370347729,1751971875333,-405.89734009,0.00028,2]
[370347730,1751971876626,-460.09838307,0.00025814,2]
[370347731,1751971876635,-460.0,0.00027397,3]
[370347732,1751971876645,-460.0,0.00027397,3]
[370347733,1751971876655,-460.0,0.00027397,3]
[370347734,1751971876664,-460.0,0.00027853,3]
[370347735,1751971876673,-460.0,0.00027853,3]
[370347736,1751971876683,-460.0,0.00027953,3]
[370347737,1751971876694,-193873.95302176,0.00028,2]
[370347738,1751971876704,-215.0738,0.00028008,2]
[370347739,1751971876715,-151.0,0.00028008,7]
[370347740,1751971876726,-151.0,0.00028008,7]
[370347741,1751971876736,-151.0,0.00028008,7]
[370347742,1751971876746,-151.0,0.00028008,7]
[370347743,1751971876755,-210.070857,0.00028008,7]
[370347744,1751971876771,-209532.00042882,0.00028024,3]
[370347745,1751971876792,-581197.9984391,0.00028024,3]
[370347746,1751971878638,-500.0,0.00026786,2]
[370347747,1751971878647,-100.75,0.00026786,2]
[370347748,1751971878659,-154.15645287,0.00026786,2]
[370347749,1751971878668,-500.0,0.00026786,2]
[370347750,1751971878677,-25.28993413,0.00026786,2]
[370347751,1751971878693,-396.03769816,0.00026786,2]
[370347752,1751971878703,-192.52332902,0.00026786,2]
[370347753,1751971878713,-492.41887282,0.00026786,2]
[370347754,1751971878729,-7.58112718,0.00026786,2]
[370347755,1751971878739,-349.73981205,0.00026786,2]
[370347756,1751971878748,-500.0,0.00026786,2]
[370347757,1751971878758,-532.57,0.00027397,3]
[370347758,1751971878768,-460.0,0.00027671,3]
[370347759,1751971878777,-69.86002752,0.00028024,3]
[370347760,1751971878797,-460.0,0.00027953,3]
[370347761,1751971878807,-3156.82,0.00028024,3]
[370347762,1751971878850,-2292.6,0.00028024,3]
[370347763,1751971878875,-174470.52594173,0.00028024,3]
[370347764,1751971878887,-766.14335463,0.00028024,3]
[370347782,1751972358240,250.0,0.00015,2]
[370347787,1751972563662,2900.0,0.00030136,120]
[370347790,1751972678110,155.05,0.00013699,2]
[370347791,1751972780628,-300.0,0.00017,2]
[370347796,1751973032073,-150.0,0.000216,2]
[370347797,1751973032082,-246.05317865,0.00021909,2]
[370347798,1751973032094,-49.75364135,0.00021909,2]
[370347799,1751973032103,-682.42171254,0.00022009,2]
[370347800,1751973032135,-517.57828746,0.00022009,2]
[370347801,1751973032144,-1663.02171254,0.0002201,2]
[370347802,1751973037080,-13457.19354572,0.0002201,2]
[370347803,1751973037089,-150.0,0.0002201,2]
[370347804,1751973037098,-2500.0,0.00022088,2]
[370347805,1751973037108,-150.0,0.00022389,2]
[370347806,1751973037117,-150.0,0.00022389,2]
[370347807,1751973037126,-150.0,0.00022389,2]
[370347809,1751973037135,-206.81672641,0.00022389,2]
[370347811,1751973037145,-150.0,0.00022389,2]
[370347813,1751973037154,-150.0,0.0002243,2]
[370347815,1751973037163,-150.0,0.00022804,4]
[370347817,1751973037173,-150.0,0.0002284,2]
[370347819,1751973037182,-175.92,0.00022887,2]
[370347820,1751973037191,-860.0655419,0.000229,8]
[370347822,1751973037201,-860.06554186,0.00022969,8]
[370347824,1751973037210,-860.06554186,0.00023038,8]
[370347827,1751973037220,-860.06554186,0.00023107,8]
[370347828,1751973037230,-860.06554186,0.00023176,8]
[370347830,1751973037239,-151.24,0.00023209,2]
[370347832,1751973037248,-150.0,0.00023218,4]
[370347834,1751973037258,-860.06554186,0.00023245,8]
[370347836,1751973037267,-150.0,0.0002326,2]
[370347838,1751973037277,-151.24,0.00023267,2]
[370347840,1751973037286,-3602.56,0.000233,2]
[370347842,1751973037296,-860.06554186,0.00023314,9]
[370347845,1751973037305,-151.24,0.00023325,2]
[370347847,1751973037315,-860.06554186,0.00023383,9]
[370347849,1751973037324,-151.24,0.00023383,2]
[370347851,1751973037334,-151.24,0.00023441,2]
[370347853,1751973037343,-860.06554186,0.00023452,9]
[370347855,1751973037353,-156.03,0.00023511,2]
[370347857,1751973037363,-860.06554186,0.00023521,9]
[370347859,1751973037372,-250.0,0.00023575,2]
[370347861,1751973037383,-200.0,0.00023575,2]
[370347862,1751973037391,-860.06554186,0.0002359,9]
[370347865,1751973037401,-150.0,0.00023633,4]
[370347867,1751973037411,-150.0,0.00023633,4]
[370347869,1751973037421,-860.06554186,0.00023659,9]
[370347871,1751973037430,-150.0,0.0002367,2]
[370347872,1751973037440,-860.06554186,0.00023728,9]
[370347875,1751973037450,-175.92,0.00023746,2]
[370347876,1751973037459,-2500.0,0.0002376,2]
[370347878,1751973037468,-2500.0,0.0002376,2]
[370347880,1751973037478,-860.06554186,0.00023797,9]
[370347881,1751973037487,-860.06554186,0.00023866,10]
[370347882,1751973037497,-860.06554186,0.00023934,10]
[370347884,1751973037506,-532.0,0.00023937,2]
[370347886,1751973037516,-860.06554186,0.00024003,10]
[370347888,1751973037525,-1680.0,0.00024028,2]
[370347890,1751973037534,-150.0,0.00024047,4]
[370347892,1751973037543,-860.06554186,0.00024072,10]
[370347893,1751973037553,-150.0,0.0002409,2]
[370347894,1751973037562,-767.0,0.00024099,2]
[370347895,1751973037570,-400.0,0.000241,8]
[370347896,1751973037580,-860.06554186,0.00024141,10]
[370347897,1751973037589,-1416.0,0.00024142,2]
[370347898,1751973037599,-1331.86,0.00024164,2]
[370347899,1751973037609,-800.0,0.000242,8]
[370347901,1751973037619,-860.06554186,0.0002421,10]
[370347902,1751973037629,-860.06554186,0.00024279,10]
[370347904,1751973037638,-1300.0,0.000243,8]
[370347906,1751973037648,-860.06554186,0.00024348,11]
[370347908,1751973037657,-150.0,0.00024352,2]
[370347910,1751973037667,-1700.0,0.000244,8]
[370347912,1751973037676,-860.06554186,0.00024417,11]
[370347915,1751973037686,-150.0,0.00024462,4]
[370347917,1751973037700,-860.06554186,0.00024486,11]
[370347919,1751973037709,-500.0,0.00024493,2]
[370347921,1751973037719,-2200.0,0.000245,8]
[370347923,1751973037729,-150.0,0.000245,2]
[370347925,1751973037739,-1866.19026597,0.00024524,2]
[370347927,1751973037749,-1866.19026594,0.00024555,2]
[370347928,1751973037759,-860.06554186,0.00024555,11]
[370347929,1751973037768,-1866.19026594,0.00024585,2]
[370347930,1751973037779,-152.14,0.00024599,2]
[370347931,1751973037790,-500.0,0.00024599,2]
[370347932,1751973037799,-500.0,0.00024599,2]
[370347933,1751973037808,-500.0,0.00024599,2]
[370347934,1751973037819,-500.0,0.00024599,2]
[370347935,1751973037829,-500.0,0.00024599,2]
[370347936,1751973037839,-500.0,0.00024599,2]
[370347937,1751973037849,-234.94829821,0.00024599,2]
[370347938,1751973037858,-500.0,0.00024599,2]
[370347939,1751973037868,-383.6888853,0.00024599,2]
[370347940,1751973037877,-500.0,0.00024599,2]
[370347941,1751973037887,-500.0,0.00024599,2]
[370347942,1751973037896,-517.30136546,0.00024599,2]
[370347943,1751973037906,-301.37397409,0.00024599,2]
[370347944,1751973037915,-500.0,0.00024599,2]
[370347945,1751973037924,-342.0140534,0.00024599,2]
[370347946,1751973037934,-500.0,0.00024599,2]
[370347947,1751973037944,-550.37827063,0.00024599,2]
[370347948,1751973037953,-400.0,0.000246,8]
[370347949,1751973037962,-11615.49098288,0.000246,2]
[370347952,1751973038203,-758.10097405,0.000246,2]
[370347954,1751973038214,-842.444617,0.000246,2]
[370347956,1751973038228,-12453.8436716,0.000246,2]
[370347957,1751973038242,-8355.461751,0.000246,2]
[370347958,1751973038257,-36008.590824,0.000246,2]
[370347960,1751973038315,-112850.96717947,0.000246,2]
[370347961,1751973038324,-175.92,0.00024604,2]
[370347962,1751973038334,-1866.19026594,0.00024616,2]
[370347963,1751973038344,-860.06554186,0.00024624,11]
[370347964,1751973038353,-155.78,0.00024629,2]
[370347965,1751973038363,-1866.19026594,0.00024647,2]
[370347966,1751973038373,-1000.0,0.00024658,2]
[370347967,1751973038384,-1866.19026594,0.00024677,2]
[370347968,1751973038394,-860.06554186,0.00024693,11]
[370347969,1751973038403,-400.0,0.000247,9]
[370347970,1751973038412,-860.06554186,0.00024762,11]
[370347971,1751973038421,-38698.62229146,0.00024773,2]
[370347972,1751973038431,-641.81266652,0.00024773,2]
[370347973,1751973038440,-582.19174006,0.00024773,2]
[370347974,1751973038719,-1110.08393949,0.00024799,2]
[370347975,1751973038729,-1110.08393946,0.00024799,2]
[370347976,1751973038739,-1110.08393946,0.00024799,2]
[370347977,1751973038748,-1110.08393946,0.00024799,2]
[370347978,1751973038758,-1110.08393946,0.00024799,2]
[370347979,1751973038767,-1110.08393946,0.00024799,2]
[370347980,1751973038777,-1110.08393946,0.00024799,2]
[370347981,1751973038786,-1110.08393946,0.00024799,2]
[370347983,1751973038796,-1110.08393946,0.00024799,2]
[370347985,1751973038806,-1110.08393946,0.00024799,2]
[370347986,1751973038815,-1110.08393946,0.000248,2]
[370347987,1751973038824,-1110.08393946,0.000248,2]
[370347988,1751973038834,-176.2590727,0.000248,2]
[370347989,1751973038844,-18085.14994326,0.000248,2]
[370347990,1751973038854,-400.0,0.000248,9]
[370347991,1751973038864,-1148.34082716,0.000248,2]
[370347992,1751973038874,-190.03114643,0.000248,4]
[370347993,1751973038886,-452.86691386,0.000248,2]
[370347994,1751973038897,-400.15944033,0.000248,2]
[370347995,1751973038906,-6366.4918329,0.000248,2]
[370347996,1751973038916,-639.55323666,0.000248,2]
[370347997,1751973038925,-860.06554186,0.00024831,12]
[370347998,1751973038935,-153.26,0.0002486,2]
[370347999,1751973038945,-153.26,0.0002486,2]
[370348000,1751973038955,-153.26,0.0002486,2]
[370348001,1751973038965,-153.26,0.0002486,2]
[370348002,1751973038974,-153.26,0.0002486,2]
[370348003,1751973038983,-244.81786844,0.00024869,2]
[370348004,1751973038993,-500.0,0.00024869,2]
[370348005,1751973039002,-500.0,0.00024869,2]
[370348006,1751973039012,-178.43451701,0.00024869,2]
[370348007,1751973039021,-500.0,0.00024869,2]
[370348008,1751973039031,-194.92934261,0.00024869,2]
[370348009,1751973039040,-500.0,0.00024869,2]
[370348010,1751973039050,-10117054.82630972,0.0002487,3]
[370348035,1751973039870,-460.0,0.000248,2]
[370348036,1751973040278,-650.08393946,0.000248,2]
[370348037,1751973040288,-2051.71606054,0.0002487,3]
[370348038,1751973040318,-445709.06145041,0.0002487,3]
[370348050,1751973042813,-2420.9,0.0002487,3]
[370348054,1751973042972,-1866.19026594,0.00024708,2]
[370348055,1751973042982,-1333.80973406,0.0002487,3]
[370348140,1751973045905,-1110.08393946,0.000248,2]
[370348142,1751973045915,-7618.71606054,0.0002487,3]
[370348196,1751973046780,-649.45017698,0.0002487,3]
[370348198,1751973046791,-575.70000926,0.0002487,3]
[370348200,1751973046803,-199999.39601599,0.0002487,3]
[370348202,1751973046814,-52279.39514614,0.0002487,3]
[370348206,1751973046837,-766.53410301,0.0002487,3]
[370349190,1751973462484,200.0,0.0003,120]
[370349192,1751973508476,200.0,0.0003,120]
[370349283,1751973986712,171.89,0.00020463,2]
[370349285,1751973989147,152.72,0.00013699,2]
[370349287,1751974061658,200.18731558,0.00020361,2]
[370349332,1751974232674,-151.0,0.000216,2]
[370349334,1751974232683,-152.72,0.00021918,2]
[370349335,1751974232694,-509.0,0.00021937,2]
[370349336,1751974232706,-507.99997,0.00021937,2]
[370349337,1751974232715,-156.587,0.00022148,2]
[370349338,1751974232724,-1200.0,0.00022363,2]
[370349339,1751974232734,-247.77951951,0.00022364,2]
[370349340,1751974232743,-150.0,0.00022364,2]
[370349341,1751974232754,-155.54848802,0.00022364,2]
[370349342,1751974232764,-150.0,0.00022364,2]
[370349343,1751974232774,-150.00000001,0.00022364,2]
[370349344,1751974232784,-150.0,0.00022364,2]
[370349345,1751974232794,-162.380719,0.00022696,2]
[370349346,1751974232805,-300.0,0.00022718,2]
[370349347,1751974232816,-6016.75,0.00022719,2]
[370349348,1751974232826,-3872.03,0.00022725,2]
[370349349,1751974232837,-1104.32,0.00022759,2]
[370349350,1751974232847,-500.0,0.00022814,2]
[370349351,1751974232858,-313.82,0.00022844,2]
[370349352,1751974232867,-2036.71,0.00022954,2]
[370349353,1751974232877,-156.05,0.00023147,2]
[370349354,1751974232886,-156.03,0.00023156,2]
[370349355,1751974232896,-2751.0,0.00023229,2]
[370349356,1751974232904,-168.3888056,0.00023244,2]
[370349357,1751974232914,-610.0,0.00023299,2]
[370349358,1751974232925,-500.0,0.00023342,2]
[370349359,1751974232934,-183.17,0.00023346,2]
[370349360,1751974232943,-168.37,0.0002339,2]
[370349361,1751974232953,-7963.34,0.00023393,7]
[370349362,1751974232963,-1574.48,0.00023456,2]
[370349363,1751974232972,-200.0,0.00023459,2]
[370349364,1751974232982,-966.93,0.00023459,2]
[370349365,1751974232991,-13747.15,0.00023463,2]
[370349366,1751974233000,-200.0,0.00023472,2]
[370349367,1751974233010,-526.24,0.00023475,2]
[370349368,1751974233019,-250.0,0.00023491,2]
[370349369,1751974233028,-1000.0,0.000236,2]
[370349370,1751974233038,-150.0,0.00023607,4]
[370349371,1751974233051,-162.34,0.00023686,2]
[370349372,1751974233061,-313.82,0.000237,2]
[370349373,1751974233070,-2357.79,0.00023733,2]
[370349374,1751974233080,-1267.93,0.00023787,2]
[370349375,1751974233090,-174.61919141,0.00023792,2]
[370349376,1751974233099,-807.81,0.00023816,2]
[370349377,1751974233108,-154.8,0.00023836,2]
[370349378,1751974233117,-5248.77,0.00023854,2]
[370349379,1751974233127,-3194.71636508,0.00023896,2]
[370349380,1751974233139,-3450.90450462,0.00023896,2]
[370349381,1751974233170,-4757.04923905,0.00023896,2]
[370349382,1751974233181,-750.83790753,0.00023896,2]
[370349383,1751974233192,-303.60078959,0.00023896,2]
[370349384,1751974233203,-676.09470144,0.00023896,2]
[370349386,1751974238039,-150.0,0.00022743,2]
[370349387,1751974238054,-2465.92995068,0.00023896,2]
[370349389,1751974238441,-5300.19595435,0.00023896,2]
[370349390,1751974238453,-3000.67058766,0.00023896,2]
[370349391,1751974238463,-1909.24266634,0.000239,10]
[370349392,1751974238473,-151.0,0.0002393,2]
[370349393,1751974238482,-151.0,0.0002393,2]
[370349394,1751974238492,-151.0,0.0002393,2]
[370349395,1751974238502,-151.0,0.0002393,2]
[370349396,1751974238512,-151.0,0.0002393,2]
[370349397,1751974238522,-151.0,0.0002393,2]
[370349398,1751974238532,-151.0,0.0002393,2]
[370349399,1751974238542,-151.0,0.0002393,2]
[370349400,1751974238551,-151.0,0.0002393,2]
[370349401,1751974238561,-151.0,0.0002393,2]
[370349402,1751974238571,-151.0,0.0002393,2]
[370349403,1751974238580,-151.0,0.0002393,2]
[370349404,1751974238590,-151.0,0.0002393,2]
[370349405,1751974238600,-151.0,0.0002393,2]
[370349406,1751974238610,-151.0,0.0002393,2]
[370349407,1751974238619,-1342.5875744,0.00023944,2]
[370349408,1751974238639,-1570.70831661,0.00023944,2]
[370349409,1751974238653,-514.65546505,0.00023944,2]
[370349412,1751974240204,-27564.40864394,0.00023944,2]
[370349413,1751974240214,-200.0,0.0002397,7]
[370349415,1751974240223,-1103.11608418,0.00023984,2]
[370349416,1751974240348,-192.70391582,0.00023984,2]
[370349417,1751974240357,-1585.19180283,0.00024,2]
[370349418,1751974240376,-623.96279197,0.00024,2]
[370349419,1751974240386,-42771.37320757,0.00024,5]
[370349420,1751974240395,-1909.24266625,0.00024107,10]
[370349421,1751974240404,-1909.24266625,0.00024314,10]
[370349422,1751974240413,-181.08010149,0.0002434,2]
[370349423,1751974240422,-783.0,0.00024406,2]
[370349424,1751974240433,-509.0,0.00024475,5]
[370349425,1751974240442,-1909.24266625,0.00024521,11]
[370349426,1751974240451,-313.82,0.00024557,2]
[370349427,1751974240460,-2141.35,0.0002457,2]
[370349428,1751974240469,-2547.28393,0.0002462,2]
[370349429,1751974240478,-262.28,0.0002462,2]
[370349430,1751974240488,-59311.89155608,0.0002463,2]
[370349431,1751974240497,-404.64086373,0.00024691,2]
[370349432,1751974240506,-227.81980785,0.00024691,2]
[370349433,1751974240515,-263.0,0.00024692,2]
[370349434,1751974240524,-502.68308507,0.00024697,2]
[370349435,1751974240534,-1909.24266625,0.00024728,11]
[370349436,1751974240543,-1417.7728106,0.0002476,2]
[370349437,1751974240552,-172.38570107,0.0002476,2]
[370349438,1751974240562,-437.17012544,0.0002476,2]
[370349439,1751974240571,-1417.77281059,0.00024761,2]
[370349440,1751974240580,-437.17012541,0.00024761,2]
[370349441,1751974240590,-1417.77281059,0.00024762,2]
[370349442,1751974240599,-437.17012541,0.00024762,2]
[370349443,1751974240608,-1417.77281059,0.00024763,2]
[370349444,1751974240617,-437.17012541,0.00024763,2]
[370349445,1751974240627,-1417.77281059,0.00024764,2]
[370349446,1751974240636,-437.17012541,0.00024764,2]
[370349447,1751974240646,-1417.77281059,0.00024766,2]
[370349448,1751974240655,-437.17012541,0.00024766,2]
[370349449,1751974240664,-1417.77281059,0.00024767,2]
[370349450,1751974240673,-437.17012541,0.00024767,2]
[370349451,1751974240683,-568.19007536,0.00024767,2]
[370349452,1751974240692,-1417.77281059,0.00024768,2]
[370349453,1751974240701,-437.17012541,0.00024768,2]
[370349454,1751974240710,-568.19007536,0.00024768,2]
[370349455,1751974240720,-568.19007536,0.00024768,2]
[370349456,1751974240729,-1417.77281059,0.00024769,2]
[370349458,1751974240738,-437.17012541,0.00024769,2]
[370349459,1751974240747,-568.19007536,0.00024769,2]
[370349460,1751974240757,-177.04851362,0.00024769,2]
[370349461,1751974240766,-568.19007536,0.00024769,2]
[370349462,1751974240775,-3128.239588,0.0002477,2]
[370349463,1751974240784,-176.2590727,0.0002477,2]
[370349464,1751974240794,-1417.77281059,0.0002477,2]
[370349466,1751974240807,-568.19007536,0.0002477,2]
[370349467,1751974240816,-172.38570107,0.0002477,2]
[370349468,1751974240826,-437.17012541,0.0002477,2]
[370349469,1751974240836,-156.94184904,0.00024773,2]
[370349470,1751974240846,-278.46527413,0.00024849,4]
[370349471,1751974240856,-154.61693569,0.00024849,4]
[370349472,1751974240866,-152.75866769,0.00024849,4]
[370349473,1751974240876,-182.97294351,0.00024859,2]
[370349474,1751974240886,-241.24454274,0.00024859,2]
[370349475,1751974240895,-500.0,0.00024859,2]
[370349476,1751974240905,-455.05511488,0.00024859,2]
[370349477,1751974240914,-500.0,0.00024859,2]
[370349478,1751974240925,-500.0,0.00024859,2]
[370349479,1751974240935,-307245.107616,0.0002486,2]
[370349480,1751974240945,-232.24345479,0.0002486,2]
[370349481,1751974240955,-232.24345479,0.0002486,2]
[370349482,1751974240964,-232.24345479,0.0002486,2]
[370349483,1751974240974,-152.88742755,0.00024869,2]
[370349484,1751974240983,-297909.16437414,0.0002487,2]
[370349485,1751974240993,-2025664.22210112,0.0002487,7]
[370349486,1751974241002,-2373.7534595,0.0002487,7]
[370349487,1751974241012,-1763178.58864972,0.0002487,3]
[370349488,1751974241112,-4337.20429625,0.0002487,3]
[370349489,1751974241125,-2586.2752179,0.0002487,3]
[370349490,1751974241137,-6001.215356,0.0002487,3]
[370349536,1751974244441,-7783.27220699,0.0002487,3]
[370349537,1751974244460,-633.2,0.0002487,3]
[370349538,1751974244489,-5403.404,0.0002487,3]
[370349539,1751974244506,-1422.62,0.0002487,3]
[370349543,1751974246064,-150.0,0.000216,2]
[370349544,1751974246074,-150.0,0.0002201,2]
[370349545,1751974246084,-150.0,0.0002243,2]
[370349546,1751974246095,-150.0,0.0002284,2]
[370349547,1751974246104,-300.0,0.00023896,2]
[370349548,1751974246114,-300.0,0.00024444,2]
[370349549,1751974246126,-1420.84564659,0.0002487,3]
[370349597,1751974783101,196.0,0.00023287,120]
[370349605,1751974971089,152.72,0.00013699,2]
[370349609,1751975199229,169.93,0.00020154,2]
[370349618,1751975432335,-5509.0,0.000212,3]
[370349619,1751975432345,-5509.0,0.000218,5]
[370349620,1751975432355,-1200.0,0.00021899,2]
[370349621,1751975432365,-2080.60936748,0.000219,6]
[370349622,1751975432375,-150.0,0.00022,2]
[370349623,1751975432384,-181.08010149,0.00022,2]
[370349624,1751975432394,-2080.6093674,0.00022176,6]
[370349625,1751975432403,-152.2134143,0.00022364,2]
[370349626,1751975432412,-278.46527413,0.00022364,2]
[370349627,1751975432422,-154.61693569,0.00022364,2]
[370349628,1751975432431,-152.75866769,0.00022364,2]
[370349629,1751975432442,-2080.6093674,0.00022452,7]
[370349630,1751975432452,-150.0,0.0002247,2]
[370349631,1751975432462,-2080.6093674,0.00022728,7]
[370349632,1751975432473,-352.88,0.00022851,2]
[370349633,1751975432483,-352.88,0.00022863,2]
[370349634,1751975432493,-352.88,0.00022875,2]
[370349635,1751975432503,-352.88,0.00022887,2]
[370349636,1751975432514,-352.88,0.00022899,2]
[370349637,1751975432527,-352.88,0.00022911,2]
[370349638,1751975432538,-2257.3,0.0002292,2]
[370349639,1751975432549,-352.88,0.00022923,2]
[370349640,1751975432558,-352.88,0.00022935,2]
[370349641,1751975432568,-150.0,0.0002294,2]
[370349642,1751975432579,-352.88,0.00022947,2]
[370349643,1751975432589,-352.88,0.00022959,2]
[370349644,1751975432598,-156.03,0.00022963,2]
[370349645,1751975432609,-502.68308507,0.00022965,2]
[370349646,1751975432619,-352.88,0.00022971,2]
[370349647,1751975432629,-352.88,0.00022983,2]
[370349648,1751975432638,-352.88,0.00022995,2]
[370349649,1751975432648,-2080.6093674,0.00023003,8]
[370349650,1751975432658,-352.88,0.00023007,2]
[370349651,1751975432668,-352.88,0.00023019,2]
[370349652,1751975432678,-352.88,0.00023031,2]
[370349653,1751975432688,-352.88,0.00023043,2]
[370349654,1751975432698,-352.88,0.00023055,2]
[370349655,1751975432708,-200.0,0.0002306,2]
[370349656,1751975432718,-352.88,0.00023067,2]
[370349657,1751975432727,-500.0,0.00023078,2]
[370349658,1751975432737,-352.88,0.00023079,2]
[370349659,1751975432747,-200.0,0.00023093,7]
[370349660,1751975432757,-1000.0,0.00023135,2]
[370349662,1751975432767,-150.0,0.00023156,2]
[370349664,1751975432776,-200.0,0.00023157,2]
[370349666,1751975432786,-179.3,0.00023157,2]
[370349668,1751975432796,-250.0,0.00023177,2]
[370349670,1751975432806,-152.72,0.00023182,2]
[370349672,1751975432815,-306.01,0.00023191,2]
[370349674,1751975432825,-1000.0,0.00023206,2]
[370349676,1751975432833,-3521.88,0.0002324,2]
[370349678,1751975432844,-151.0,0.00023246,2]
[370349680,1751975432854,-151.0,0.00023246,2]
[370349682,1751975432864,-151.0,0.00023246,2]
[370349684,1751975432873,-151.0,0.00023246,2]
[370349686,1751975432882,-151.0,0.00023246,2]
[370349688,1751975432892,-151.0,0.00023246,2]
[370349690,1751975432901,-151.0,0.00023246,2]
[370349691,1751975432911,-151.0,0.00023246,2]
[370349693,1751975432920,-151.0,0.00023246,2]
[370349695,1751975432930,-151.0,0.00023246,2]
[370349697,1751975432939,-151.0,0.00023246,2]
[370349699,1751975432948,-151.0,0.00023246,2]
[370349701,1751975432958,-151.0,0.00023246,2]
[370349703,1751975432967,-151.0,0.00023246,2]
[370349705,1751975432977,-5000.0,0.00023247,2]
[370349707,1751975432987,-1665.66461114,0.0002326,2]
[370349709,1751975432999,-1175.4341557,0.0002326,2]
[370349711,1751975433015,-761.73,0.0002326,2]
[370349716,1751975433047,-1312.35212548,0.0002326,2]
[370349718,1751975433059,-3603.29297453,0.0002326,2]
[370350015,1751975440567,-15381.52613315,0.0002326,2]
[370350016,1751975440577,-3161.96,0.00023275,2]
[370350017,1751975440586,-302.58,0.00023276,2]
[370350018,1751975440595,-2080.6093674,0.00023279,8]
[370350019,1751975440604,-304.92,0.00023281,2]
[370350020,1751975440613,-304.43,0.00023281,2]
[370350021,1751975440622,-301.09,0.00023283,2]
[370350022,1751975440632,-163.93,0.00023288,2]
[370350023,1751975440641,-304.57,0.0002329,2]
[370350024,1751975440652,-303.11,0.0002329,2]
[370350025,1751975440662,-301.94,0.00023299,2]
[370350026,1751975440671,-304.66,0.00023299,2]
[370350027,1751975440682,-304.41,0.00023313,2]
[370350028,1751975440691,-303.68,0.00023313,2]
[370350029,1751975440701,-305.07,0.00023324,2]
[370350030,1751975440710,-301.06,0.00023335,2]
[370350031,1751975440719,-304.69,0.00023335,2]
[370350032,1751975440729,-1000.0,0.00023341,2]
[370350033,1751975440739,-304.19,0.0002335,2]
[370350034,1751975440749,-300.74,0.0002335,2]
[370350035,1751975440758,-302.52,0.00023361,2]
[370350036,1751975440768,-302.55,0.00023384,2]
[370350037,1751975440778,-304.04,0.00023393,2]
[370350038,1751975440788,-150.0,0.0002341,2]
[370350039,1751975440797,-301.95,0.00023434,2]
[370350040,1751975440807,-302.85,0.00023434,2]
[370350041,1751975440816,-301.79,0.00023504,2]
[370350042,1751975440826,-303.67,0.00023504,2]